bitfinex-derivatives/quotes_BTCF0:USTF0_20241213
["timestamp","ask_amount","ask_price","bid_price","bid_amount"]
[1734093587739,0.00149726,100240.0,100230.0,0.049882]
[1734093588043,0.11908392,100250.0,100240.0,0.049877]
[1734093588249,0.11908392,100250.0,100240.0,0.35444492]
[1734093588548,0.20829507,100250.0,100240.0,0.4800557]
[1734093588739,0.20829507,100250.0,100240.0,0.54280453]
[1734093588934,0.20829507,100250.0,100240.0,0.4800557]
[1734093589133,0.20829507,100250.0,100240.0,0.1192557]
[1734093589333,0.08921115,100250.0,100240.0,0.1192557]
[1734093589734,0.08921115,100250.0,100240.0,0.4800557]
[1734093590343,0.10021115,100250.0,100240.0,0.53617466]
[1734093590545,0.011,100250.0,100240.0,0.54282265]
[1734093590739,0.011,100250.0,100240.0,0.60642265]
[1734093590936,0.007,100250.0,100240.0,0.63842265]
[1734093591138,0.007,100250.0,100240.0,0.81749291]
[1734093591351,0.007,100250.0,100240.0,1.05626387]
[1734093591740,0.007,100250.0,100240.0,1.46266649]
[1734093591938,0.007,100250.0,100240.0,1.27694824]
[1734093592244,0.007,100250.0,100240.0,1.50074562]
[1734093592751,0.007,100250.0,100240.0,1.57021774]
[1734093592947,0.007,100250.0,100240.0,1.56349445]
[1734093593250,0.007,100250.0,100240.0,1.75894344]
[1734093595753,0.007,100250.0,100240.0,1.75223952]
[1734093596048,0.007,100250.0,100240.0,1.45892305]
[1734093597852,0.007,100250.0,100240.0,1.22015209]
[1734093599041,0.007,100250.0,100240.0,1.21346856]
[1734093599243,0.007,100250.0,100240.0,1.22017027]
[1734093599751,0.60001564,100280.0,100270.0,0.049862]
[1734093599954,0.60001564,100280.0,100270.0,0.11261083]
[1734093600247,0.69977123,100280.0,100270.0,0.11261083]
[1734093601051,0.70877123,100280.0,100270.0,0.11261083]
[1734093603159,0.71277123,100280.0,100270.0,0.11261083]
[1734093604453,0.91459121,100280.0,100260.0,0.049866]
[1734093604753,0.049872,100250.0,100240.0,0.049874]
[1734093605048,0.47342083,100250.0,100240.0,0.049874]
[1734093605256,0.53552083,100250.0,100240.0,0.049874]
[1734093605448,0.66634658,100250.0,100240.0,0.049874]
[1734093607043,0.72909541,100250.0,100240.0,0.001]
[1734093607260,0.049882,100230.0,100220.0,0.049885]
[1734093607558,0.049882,100230.0,100210.0,0.06424547]
[1734093607559,0.83423083,100230.0,100210.0,0.06424547]
[1734093607748,0.17463583,100220.0,100210.0,0.05138664]
[1734093608052,0.59818466,100220.0,100210.0,0.05138664]
[1734093608250,0.53543583,100220.0,100210.0,0.00149664]
[1734093608551,0.049892,100210.0,100200.0,0.24514383]
[1734093609161,0.51047746,100210.0,100200.0,0.149895]
[1734093610147,0.51147746,100210.0,100200.0,0.150895]
[1734093611058,0.51247746,100210.0,100200.0,0.158895]
[1734093613347,0.10178546,100210.0,100200.0,0.71100836]
[1734093613545,0.002,100210.0,100200.0,0.8962714]
[1734093614355,0.002,100210.0,100200.0,1.22646947]
[1734093614548,0.002,100210.0,100200.0,1.52646947]
[1734093614749,0.441085,100230.0,100220.0,0.049887]
[1734093614944,0.441085,100230.0,100220.0,0.14554368]
[1734093616454,0.441085,100230.0,100220.0,0.049887]
[1734093629986,0.53004911,100230.0,100220.0,0.049887]
[1734093630180,0.441085,100230.0,100220.0,0.049887]
[1734093631292,0.441085,100230.0,100220.0,0.11262358]
[1734093631593,0.53004911,100230.0,100220.0,0.11262358]
[1734093631989,0.63043871,100240.0,100220.0,0.58604716]
[1734093632185,0.14033833,100240.0,100230.0,0.06273658]
[1734093632392,0.14033833,100240.0,100230.0,0.12683658]
[1734093633300,0.14433833,100240.0,100230.0,0.16640307]
[1734093633489,0.09446133,100240.0,100230.0,0.21628507]
[1734093633796,0.14433833,100240.0,100230.0,0.21628507]
[1734093634100,0.14433833,100240.0,100230.0,0.20955378]
[1734093634287,0.26542225,100240.0,100230.0,0.3948203]
[1734093635097,0.26542225,100240.0,100230.0,0.4264203]
[1734093635790,0.21554525,100240.0,100230.0,0.7872203]
[1734093636301,0.21554525,100240.0,100230.0,1.03584143]
[1734093636590,0.09646133,100240.0,100230.0,0.79707047]
[1734093636793,0.14633833,100240.0,100230.0,0.79707047]
[1734093637797,0.14633833,100240.0,100230.0,0.7970766]
[1734093639192,0.26542225,100240.0,100230.0,0.7970766]
[1734093639791,0.21554525,100240.0,100230.0,0.7970766]
[1734093640302,0.09646133,100240.0,100230.0,0.7970766]
[1734093640604,0.09646133,100240.0,100230.0,0.79033359]
[1734093640788,0.09646133,100240.0,100230.0,0.7970802]
[1734093641391,0.09646133,100240.0,100230.0,1.03585116]
[1734093642398,0.21554525,100240.0,100230.0,1.03585116]
[1734093642601,0.21554525,100240.0,100230.0,1.07951127]
[1734093643501,0.21578853,100240.0,100230.0,1.03585116]
[1734093643700,0.21578853,100240.0,100230.0,1.07951128]
[1734093644195,0.09520739,100240.0,100230.0,0.99655342]
[1734093644501,0.09520739,100240.0,100230.0,1.29567659]
[1734093644801,0.09520739,100240.0,100230.0,1.6336331]
[1734093645102,0.20829131,100250.0,100230.0,1.39486214]
[1734093645307,0.20829131,100250.0,100240.0,0.87448727]
[1734093645496,0.08920739,100250.0,100240.0,0.97476728]
[1734093646393,0.09320739,100250.0,100240.0,0.97476728]
[1734093647105,0.09520739,100250.0,100240.0,0.97476728]
[1734093648294,0.09520739,100250.0,100240.0,0.69218774]
[1734093649997,0.14507939,100250.0,100240.0,0.69218774]
[1734093653307,0.14507939,100250.0,100240.0,0.65932764]
[1734093653692,0.14507939,100250.0,100240.0,0.6591426]
[1734093656895,0.14507939,100250.0,100240.0,0.65913794]
[1734093657394,0.26416331,100250.0,100240.0,0.89806108]
[1734093658612,0.26416331,100250.0,100240.0,0.94171795]
[1734093659098,0.26416331,100250.0,100240.0,0.89806108]
[1734093659500,0.26416331,100250.0,100240.0,0.94171796]
[1734093660212,0.26416331,100250.0,100240.0,0.94172324]
[1734093661407,0.26416331,100250.0,100240.0,1.00443492]
[1734093661602,0.26416331,100250.0,100240.0,0.94172324]
[1734093661907,0.21429131,100250.0,100240.0,1.00443492]
[1734093662303,0.21429131,100250.0,100240.0,0.82524257]
[1734093663303,0.21429131,100250.0,100240.0,0.71887401]
[1734093663903,0.12508392,100250.0,100240.0,0.53738131]
[1734093664111,0.12508392,100250.0,100240.0,0.35807401]
[1734093664711,0.12508392,100250.0,100240.0,0.71887401]
[1734093665108,0.12508392,100250.0,100240.0,0.35807401]
[1734093665599,0.17495592,100250.0,100240.0,0.35807401]
[1734093666206,0.32385556,100250.0,100240.0,0.71887401]
[1734093668203,0.32385556,100250.0,100240.0,0.76253112]
[1734093669011,0.76766066,100250.0,100240.0,0.18595222]
[1734093669311,0.049877,100240.0,100230.0,0.4183407]
[1734093669506,0.83354774,100240.0,100230.0,0.4183407]
[1734093669701,0.83354774,100240.0,100220.0,0.86113638]
[1734093669702,0.68465864,100240.0,100220.0,0.86113638]
[1734093669904,0.77099896,100230.0,100220.0,0.67249548]
[1734093670107,0.77099896,100230.0,100220.0,0.62882618]
[1734093670309,0.77099896,100230.0,100220.0,0.86774932]
[1734093670516,0.77099896,100230.0,100220.0,0.62882618]
[1734093670710,0.592329,100230.0,100220.0,0.62882618]
[1734093670910,0.592329,100230.0,100220.0,0.62884101]
[1734093671218,0.592329,100230.0,100220.0,0.30364101]
[1734093671417,0.592329,100230.0,100220.0,0.29701324]
[1734093671719,0.71129435,100230.0,100220.0,0.11759568]
[1734093672505,0.71129435,100230.0,100220.0,0.11959568]
[1734093672909,0.77400603,100230.0,100220.0,0.007]
[1734093673116,0.75481618,100230.0,100220.0,0.007]
[1734093673410,0.81723914,100230.0,100220.0,0.007]
[1734093673910,0.96580102,100230.0,100220.0,0.007]
[1734093674117,0.81723914,100230.0,100220.0,0.007]
[1734093674320,0.96580395,100230.0,100220.0,0.007]
[1734093675510,0.78713399,100230.0,100220.0,0.007]
[1734093677522,0.90582653,100230.0,100220.0,0.007]
[1734093678621,0.91590532,100230.0,100220.0,0.007]
[1734093681823,0.978617,100230.0,100220.0,0.007]
[1734093682330,0.91590532,100230.0,100220.0,0.007]
[1734093682618,0.978617,100230.0,100220.0,0.007]
[1734093684324,0.83005219,100230.0,100220.0,0.007]
[1734093685717,0.978617,100230.0,100220.0,0.007]
[1734093686118,0.83005219,100230.0,100220.0,0.007]
[1734093686319,0.978617,100230.0,100220.0,0.007]
[1734093687024,0.91590532,100230.0,100220.0,0.007]
[1734093688421,0.99824688,100230.0,100220.0,0.007]
[1734093688925,0.87955434,100230.0,100220.0,0.007]
[1734093689317,1.0582243,100230.0,100220.0,0.007]
[1734093690817,2.5582243,100230.0,100220.0,0.007]
[1734093692420,2.55785299,100230.0,100220.0,0.007]
[1734093692633,2.40965949,100230.0,100220.0,0.007]
[1734093693121,2.77237117,100230.0,100200.0,0.1]
[1734093693325,0.74362283,100210.0,100200.0,0.1]
[1734093693523,0.68091115,100210.0,100200.0,0.1]
[1734093693926,0.78070656,100210.0,100200.0,0.1]
[1734093694423,0.78070656,100210.0,100200.0,0.104]
[1734093694624,0.78170656,100210.0,100200.0,0.113]
[1734093694827,0.69277479,100210.0,100200.0,0.113]
[1734093695127,0.69377479,100210.0,100200.0,0.113]
[1734093695721,0.84199442,100210.0,100200.0,0.113]
[1734093696225,0.69377479,100210.0,100200.0,0.113]
[1734093696733,0.84199442,100210.0,100200.0,0.113]
[1734093697528,0.84199442,100210.0,100200.0,0.162897]
[1734093698329,0.77928274,100210.0,100200.0,0.162897]
[1734093698527,0.20011163,100210.0,100200.0,0.22560868]
[1734093698727,0.12082736,100210.0,100200.0,0.8351474]
[1734093698920,0.16005034,100210.0,100200.0,0.8351474]
[1734093699126,0.08912298,100210.0,100200.0,1.11774902]
[1734093699320,0.08912298,100210.0,100200.0,1.05503734]
[1734093700324,0.03924378,100210.0,100200.0,1.64812829]
[1734093700522,0.60878663,100230.0,100220.0,0.049887]
[1734093700523,0.67149831,100230.0,100220.0,0.049887]
[1734093700737,0.67149831,100230.0,100220.0,0.23578178]
[1734093700936,0.77129372,100230.0,100220.0,0.2291723]
[1734093701131,0.80420062,100230.0,100220.0,0.23578854]
[1734093701327,0.75431562,100230.0,100220.0,0.23578854]
[1734093701739,0.75431562,100230.0,100220.0,0.24178854]
[1734093701927,0.75431562,100230.0,100220.0,0.2351723]
[1734093703246,0.75431562,100230.0,100220.0,0.2417802]
[1734093703432,0.75431562,100230.0,100220.0,0.2351723]
[1734093704834,0.65869704,100230.0,100220.0,0.2351723]
[1734093706041,0.51047741,100230.0,100220.0,0.2351723]
[1734093706845,0.51047741,100230.0,100220.0,0.24177769]
[1734093707046,0.51047741,100230.0,100220.0,0.24838308]
[1734093709838,0.410682,100230.0,100220.0,0.24838308]
[1734093710038,0.410682,100230.0,100220.0,0.34400166]
[1734093710248,0.410682,100230.0,100220.0,0.58304873]
[1734093710444,0.3608,100230.0,100220.0,0.58304873]
[1734093710747,0.29154935,100240.0,100220.0,0.58304873]
[1734093711049,0.29154935,100240.0,100230.0,0.2600673]
[1734093711050,0.19322522,100240.0,100230.0,0.2600673]
[1734093711345,0.0014971,100240.0,100230.0,0.36229127]
[1734093711542,0.0014971,100240.0,100230.0,0.39329127]
[1734093714358,0.0014971,100240.0,100230.0,0.38668588]
[1734093714561,0.0014971,100240.0,100230.0,0.20740058]
[1734093715054,0.0014971,100240.0,100230.0,0.38668588]
[1734093715456,0.0014971,100240.0,100230.0,0.20740058]
[1734093716166,0.0014971,100240.0,100230.0,0.21715869]
[1734093718460,0.0305,100250.0,100240.0,0.049877]
[1734093718652,0.0305,100250.0,100240.0,0.14549558]
[1734093719264,0.0305,100250.0,100240.0,0.50629558]
[1734093719566,0.04987,100260.0,100250.0,0.049872]
[1734093719863,0.63138075,100270.0,100260.0,0.049867]
[1734093720367,0.73112639,100270.0,100260.0,0.049867]
[1734093721465,0.74012639,100270.0,100260.0,0.050867]
[1734093722564,0.74612639,100270.0,100260.0,0.050867]
[1734093723060,0.23710676,100270.0,100260.0,0.050867]
[1734093723964,0.23710676,100270.0,100260.0,0.049867]
[1734093724173,0.22810676,100270.0,100260.0,0.049867]
[1734093724356,0.58890676,100270.0,100260.0,0.049867]
[1734093727157,0.58890676,100270.0,100260.0,0.11255604]
[1734093729359,0.57871164,100270.0,100260.0,0.17524508]
[1734093729560,0.0363,100270.0,100260.0,0.53604508]
[1734093732267,0.006,100270.0,100260.0,0.72190298]
[1734093735765,0.006,100270.0,100260.0,0.71533038]
[1734093736072,0.006,100270.0,100260.0,0.7219055]
[1734093741170,0.006,100270.0,100260.0,0.96095257]
[1734093741365,0.0312,100280.0,100260.0,1.01081757]
[1734093741569,0.0312,100280.0,100270.0,0.68533634]
[1734093741766,0.0312,100280.0,100270.0,0.69191146]
[1734093743879,0.0312,100280.0,100270.0,0.68533634]
[1734093745695,0.0312,100280.0,100270.0,0.92438341]
[1734093745880,0.04317608,100290.0,100270.0,0.98707245]
[1734093746172,0.00149652,100290.0,100280.0,0.17523508]
[1734093746374,0.00149652,100290.0,100280.0,0.35452038]
[1734093747373,0.00449652,100290.0,100280.0,0.35452038]
[1734093747573,0.00449652,100290.0,100280.0,0.59356745]
[1734093748378,0.00649652,100290.0,100280.0,0.59356745]
[1734093748982,0.00649652,100290.0,100280.0,0.95436745]
[1734093759183,0.00649652,100290.0,100280.0,1.07420532]
[1734093759390,0.00649652,100290.0,100280.0,1.40499866]
[1734093759684,0.00649652,100290.0,100280.0,1.40485291]
[1734093761387,0.00649652,100290.0,100280.0,1.4250219]
[1734093761589,0.00349652,100290.0,100280.0,1.4290219]
[1734093761886,0.00149652,100290.0,100280.0,1.4310219]
[1734093762589,0.00149652,100290.0,100280.0,0.97499623]
[1734093762782,0.00149652,100290.0,100280.0,0.80125114]
[1734093767793,0.35044448,100300.0,100290.0,0.049852]
[1734093767983,0.35044448,100300.0,100290.0,0.2916517]
[1734093768289,0.35044448,100300.0,100290.0,0.89149877]
[1734093769293,0.49866411,100300.0,100290.0,0.89149877]
[1734093769995,0.49866411,100300.0,100290.0,0.6524517]
[1734093770185,0.49866411,100300.0,100290.0,0.89149877]
[1734093770591,0.49866411,100300.0,100290.0,0.6524517]
[1734093771293,0.49866411,100300.0,100290.0,0.89149877]
[1734093771480,0.56135315,100300.0,100290.0,0.53069877]
[1734093771685,0.56135315,100300.0,100290.0,0.89149877]
[1734093772085,0.56135315,100300.0,100290.0,0.90156158]
[1734093772282,0.44240667,100300.0,100290.0,0.77895773]
[1734093772495,0.44240667,100300.0,100280.0,0.77246721]
[1734093772496,0.049852,100290.0,100280.0,0.41815773]
[1734093772797,0.82828747,100290.0,100270.0,0.79821673]
[1734093772999,0.41347179,100280.0,100270.0,0.79821673]
[1734093773292,0.29439368,100280.0,100270.0,0.79821673]
[1734093773495,0.71788272,100280.0,100270.0,0.46801673]
[1734093773691,0.99627346,100280.0,100270.0,0.17911066]
[1734093773890,0.99627346,100280.0,100260.0,0.22897466]
[1734093773891,0.049862,100270.0,100260.0,0.22897466]
[1734093774092,0.86443744,100270.0,100260.0,0.22897466]
[1734093774290,0.68576748,100270.0,100260.0,0.049864]
[1734093774487,0.78549323,100270.0,100250.0,0.52399952]
[1734093774790,0.56164593,100260.0,100250.0,0.51317356]
[1734093774996,0.77315141,100260.0,100250.0,0.27412649]
[1734093775197,0.77315141,100260.0,100250.0,0.23047653]
[1734093775398,0.62433497,100260.0,100250.0,0.05136587]
[1734093775884,0.78676965,100260.0,100250.0,0.00149587]
[1734093776090,0.78676965,100260.0,100240.0,0.46803373]
[1734093776091,0.049872,100250.0,100240.0,0.46803373]
[1734093776294,0.47336104,100250.0,100240.0,0.22898666]
[1734093776493,0.47336104,100250.0,100240.0,0.049876]
[1734093776697,0.59233997,100250.0,100240.0,0.049876]
[1734093777398,0.47336104,100250.0,100240.0,0.049876]
[1734093777597,0.47436104,100250.0,100240.0,0.054876]
[1734093777799,0.47536104,100250.0,100240.0,0.063876]
[1734093778292,0.47536104,100250.0,100240.0,0.12656504]
[1734093778500,0.412672,100250.0,100240.0,0.12656504]
[1734093779691,0.051872,100250.0,100240.0,0.12656504]
[1734093782502,0.002,100250.0,100240.0,0.55005408]
[1734093782999,0.002,100250.0,100240.0,0.58325408]
[1734093783893,0.002,100250.0,100240.0,0.457876]
[1734093784095,0.002,100250.0,100240.0,0.58325408]
[1734093785197,0.002,100250.0,100240.0,0.61625408]
[1734093788100,0.002,100250.0,100240.0,0.79536474]
[1734093793710,0.002,100250.0,100240.0,0.7326757]
[1734093794003,0.032,100260.0,100250.0,0.049872]
[1734093794191,0.032,100260.0,100250.0,0.50356104]
[1734093794394,0.032,100260.0,100250.0,0.440872]
[1734093794696,0.032,100260.0,100250.0,0.50356104]
[1734093795409,0.032,100260.0,100250.0,0.51413171]
[1734093795608,0.032,100260.0,100250.0,0.51613171]
[1734093797501,0.032,100260.0,100250.0,0.69524237]
[1734093798005,0.032,100260.0,100250.0,0.66504237]
[1734093798215,0.15737808,100260.0,100250.0,0.60235333]
[1734093798396,0.09468904,100260.0,100250.0,0.60235333]
[1734093798708,0.19443468,100260.0,100250.0,0.42324267]
[1734093798912,0.22753468,100260.0,100250.0,0.42324267]
[1734093799405,0.16484564,100260.0,100250.0,0.60235333]
[1734093799706,0.22753468,100260.0,100250.0,0.42324267]
[1734093800305,0.28382457,100260.0,100250.0,0.42324267]
[1734093800902,0.34651361,100260.0,100250.0,0.42324267]
[1734093801096,0.34651361,100260.0,100250.0,0.416672]
[1734093801097,0.28382457,100260.0,100250.0,0.416672]
[1734093801309,0.34651361,100260.0,100250.0,0.42340029]
[1734093801708,0.34651361,100260.0,100250.0,0.06260029]
[1734093802206,1.02837712,100260.0,100250.0,0.01282458]
[1734093802409,1.17956068,100260.0,100250.0,0.006]
[1734093803007,0.87956068,100260.0,100250.0,0.006]
[1734093804610,0.049874,100250.0,100230.0,0.46803873]
[1734093804809,0.45717293,100240.0,100230.0,0.24672532]
[1734093805208,0.42739709,100240.0,100230.0,0.23581205]
[1734093805408,0.52716264,100240.0,100230.0,0.05670139]
[1734093805615,0.52716264,100240.0,100230.0,0.06270139]
[1734093805916,0.52716264,100240.0,100230.0,0.24181205]
[1734093806207,0.52716264,100240.0,100230.0,0.25081205]
[1734093806208,0.52816264,100240.0,100230.0,0.25081205]
[1734093806419,0.52816264,100240.0,100230.0,0.06570139]
[1734093806610,0.52916264,100240.0,100230.0,0.07170139]
[1734093806909,0.4335604,100240.0,100230.0,0.07170139]
[1734093807611,0.4335604,100240.0,100230.0,0.07166209]
[1734093807809,0.4661604,100240.0,100230.0,0.07166209]
[1734093808213,0.31744104,100240.0,100230.0,0.07166209]
[1734093808716,0.4661604,100240.0,100230.0,0.07166209]
[1734093809108,0.31744104,100240.0,100230.0,0.07166209]
[1734093809820,0.31744104,100240.0,100230.0,0.07166001]
[1734093813624,0.41304328,100240.0,100230.0,0.07166001]
[1734093816413,0.38114328,100240.0,100230.0,0.07166001]
[1734093816714,0.0342,100240.0,100230.0,0.16726225]
[1734093816921,0.0342,100240.0,100230.0,0.19966225]
[1734093817312,0.0342,100240.0,100230.0,0.10402327]
[1734093817516,0.0342,100240.0,100230.0,0.28313393]
[1734093818116,0.002,100240.0,100230.0,0.97858324]
[1734093818417,0.002,100240.0,100230.0,1.3277031]
[1734093818721,0.15027549,100260.0,100250.0,0.049872]
[1734093818910,0.0313,100260.0,100250.0,0.41741427]
[1734093819116,0.0313,100260.0,100250.0,0.44981427]
[1734093820020,0.0313,100260.0,100250.0,0.62875425]
[1734093820417,0.12045672,100260.0,100250.0,0.62875425]
[1734093821013,0.12045672,100260.0,100250.0,0.63075425]
[1734093821625,0.20813221,100270.0,100250.0,0.73035649]
[1734093821813,0.20813221,100270.0,100260.0,0.049867]
[1734093822123,0.20813221,100270.0,100260.0,0.05660927]
[1734093824320,0.20813221,100270.0,100260.0,0.41740927]
[1734093824528,0.08915672,100270.0,100260.0,0.51301151]
[1734093824723,0.08915672,100270.0,100260.0,0.54391151]
[1734093825023,0.27233221,100280.0,100270.0,0.049862]
[1734093826425,0.27633221,100280.0,100270.0,0.049862]
[1734093826623,0.27833221,100280.0,100270.0,0.049862]
[1734093829334,0.34101627,100280.0,100270.0,0.049862]
[1734093829724,0.27833221,100280.0,100270.0,0.049862]
[1734093830031,0.34101627,100280.0,100270.0,0.049862]
[1734093830530,0.39087327,100280.0,100270.0,0.049862]
[1734093830729,0.55328308,100280.0,100270.0,0.049862]
[1734093830930,0.58438308,100280.0,100270.0,0.049862]
[1734093831324,2.08438308,100280.0,100270.0,0.049862]
[1734093831629,0.58438308,100280.0,100270.0,0.049862]
[1734093833828,0.94518308,100280.0,100270.0,0.049862]
[1734093834132,0.049867,100270.0,100260.0,0.049866]
[1734093834333,0.5623968,100270.0,100260.0,0.049866]
[1734093834530,0.68137229,100270.0,100250.0,0.0324]
[1734093834734,0.68137229,100270.0,100250.0,0.082269]
[1734093834735,0.2668968,100260.0,100250.0,0.082269]
[1734093835036,0.74667229,100260.0,100250.0,0.082269]
[1734093835227,0.74667229,100260.0,100250.0,0.049869]
[1734093835426,0.84639804,100260.0,100250.0,0.049869]
[1734093836522,0.84639804,100260.0,100250.0,0.053869]
[1734093836730,0.84639804,100260.0,100250.0,0.11655306]
[1734093836925,0.84639804,100260.0,100250.0,0.11855306]
[1734093837123,0.78371398,100260.0,100250.0,0.055869]
[1734093839530,0.42291398,100260.0,100250.0,0.055869]
[1734093839739,0.20421274,100260.0,100250.0,0.055869]
[1734093840241,0.20421274,100260.0,100250.0,0.06259944]
[1734093841844,0.20421274,100260.0,100250.0,0.24153942]
[1734093842444,0.32318823,100260.0,100250.0,0.06259944]
[1734093843148,0.41873602,100260.0,100250.0,0.01273044]
[1734093843448,0.90958166,100260.0,100250.0,0.006]
[1734093843634,0.96925528,100260.0,100250.0,0.006]
[1734093844641,1.02874303,100260.0,100250.0,0.006]
[1734093846043,1.02874303,100260.0,100250.0,0.055872]
[1734093846540,0.85027979,100260.0,100250.0,0.055872]
[1734093851043,0.81997979,100260.0,100250.0,0.055872]
[1734093856348,0.45917979,100260.0,100250.0,0.055872]
[1734093856548,0.93894594,100260.0,100250.0,0.055872]
[1734093856749,0.57814709,100260.0,100250.0,0.055872]
[1734093857139,0.6080274,100260.0,100250.0,0.055872]
[1734093857343,0.60803814,100260.0,100250.0,0.055872]
[1734093857545,0.4890601,100260.0,100250.0,0.055872]
[1734093858641,0.8498601,100260.0,100250.0,0.055872]
[1734093861153,1.02832334,100260.0,100250.0,0.055872]
[1734093862251,1.02832334,100260.0,100250.0,0.06256439]
[1734093862454,0.87960398,100260.0,100250.0,0.055872]
[1734093863351,0.87960398,100260.0,100250.0,0.06256604]
[1734093863552,0.87960398,100260.0,100250.0,0.24150602]
[1734093863748,0.87960398,100260.0,100250.0,0.006]
[1734093864156,2.37960398,100260.0,100250.0,0.006]
[1734093864353,2.20114074,100260.0,100250.0,0.006]
[1734093864554,0.70114074,100260.0,100250.0,0.006]
[1734093867854,0.27762669,100260.0,100250.0,0.055872]
[1734093868155,0.27762669,100260.0,100250.0,0.06251432]
[1734093868156,0.45650764,100260.0,100250.0,0.06251432]
[1734093868354,0.45650764,100260.0,100250.0,0.2414543]
[1734093869964,0.45650764,100260.0,100250.0,0.23481198]
[1734093870266,0.45650764,100260.0,100250.0,0.24147414]
[1734093871654,0.81730764,100260.0,100250.0,0.24147414]
[1734093873158,0.63842669,100260.0,100250.0,0.24147414]
[1734093873964,0.63842669,100260.0,100250.0,0.25149625]
[1734093874161,0.42409353,100260.0,100250.0,0.55279694]
[1734093874364,0.42409353,100260.0,100250.0,0.58289694]
[1734093874557,0.57322777,100260.0,100250.0,0.40395696]
[1734093874755,0.57322777,100260.0,100250.0,0.58346997]
[1734093875854,0.51051372,100260.0,100250.0,0.98792516]
[1734093876056,0.32810108,100260.0,100250.0,0.98792516]
[1734093876256,0.32810108,100260.0,100250.0,1.10753532]
[1734093876564,0.32810108,100260.0,100250.0,0.98787858]
[1734093876864,0.32810108,100260.0,100250.0,1.10753532]
[1734093877263,0.26841951,100260.0,100250.0,1.43860705]
[1734093877867,0.26841951,100260.0,100250.0,1.43194489]
[1734093878163,0.20873215,100260.0,100250.0,1.20007356]
[1734093879570,0.08944688,100260.0,100250.0,1.5582394]
[1734093879757,0.08944688,100260.0,100250.0,1.62095345]
[1734093879963,0.08944688,100260.0,100250.0,1.5582394]
[1734093880461,0.20873215,100270.0,100260.0,0.049867]
[1734093880666,0.20873215,100270.0,100260.0,0.94190115]
[1734093880864,0.20873215,100270.0,100260.0,1.0046152]
[1734093881273,0.20873215,100270.0,100260.0,1.1245314]
[1734093881473,0.20873215,100270.0,100260.0,1.00461495]
[1734093883261,0.20873215,100270.0,100260.0,0.9419009]
[1734093883768,0.20873215,100270.0,100260.0,0.89824571]
[1734093884467,0.20873215,100270.0,100260.0,0.89820131]
[1734093885765,0.08944688,100270.0,100260.0,0.89820131]
[1734093885957,0.08944688,100270.0,100260.0,0.83548726]
[1734093886172,0.3213082,100270.0,100260.0,0.83548726]
[1734093886368,0.3213082,100270.0,100260.0,0.23574463]
[1734093886671,0.049867,100260.0,100250.0,0.62999983]
[1734093886967,0.35244445,100260.0,100250.0,0.27583904]
[1734093887267,0.4171908,100260.0,100250.0,0.09663232]
[1734093887478,0.4171908,100260.0,100250.0,0.08661043]
[1734093887769,0.4171908,100260.0,100250.0,0.09261046]
[1734093887979,0.68871267,100260.0,100250.0,0.0361]
[1734093888281,0.83784691,100260.0,100250.0,0.006]
[1734093888462,0.83784691,100260.0,100250.0,0.055872]
[1734093893074,0.47704691,100260.0,100250.0,0.055872]
[1734093893380,0.83784691,100260.0,100250.0,0.055872]
[1734093893870,0.71856164,100260.0,100250.0,0.055872]
[1734093894072,0.83761198,100260.0,100250.0,0.055872]
[1734093894473,0.71856164,100260.0,100250.0,0.055872]
[1734093895369,0.72879085,100260.0,100250.0,0.055872]
[1734093901180,0.63323045,100260.0,100250.0,0.055872]
[1734093905983,0.27243045,100260.0,100250.0,0.055872]
[1734093906190,0.39149974,100260.0,100250.0,0.055872]
[1734093906482,0.39149974,100260.0,100250.0,0.06260837]
[1734093907686,0.39149974,100260.0,100250.0,0.055872]
[1734093907986,0.39149974,100260.0,100250.0,0.06263288]
[1734093909390,0.45420233,100260.0,100250.0,0.12533547]
[1734093910285,0.45420233,100260.0,100250.0,0.06263288]
[1734093910485,0.97745056,100260.0,100250.0,0.01276088]
[1734093910796,0.91474797,100260.0,100250.0,0.006]
[1734093910981,0.55394797,100260.0,100250.0,0.006]
[1734093911185,0.55394797,100260.0,100250.0,0.055872]
[1734093911388,0.49124538,100260.0,100250.0,0.11857459]
[1734093911573,0.27243045,100260.0,100250.0,0.12532852]
[1734093912086,0.33513304,100260.0,100250.0,0.12532852]
[1734093912391,0.45424124,100260.0,100250.0,0.12532852]
[1734093912685,0.33513304,100260.0,100250.0,0.12532852]
[1734093913490,0.51409988,100260.0,100250.0,0.12532852]
[1734093914577,0.51409988,100260.0,100250.0,0.30453524]
[1734093914783,0.32810108,100260.0,100250.0,0.30453524]
[1734093915084,0.26835786,100260.0,100250.0,0.97843306]
[1734093915888,0.26835786,100260.0,100250.0,0.97167913]
[1734093916075,0.26835786,100260.0,100250.0,1.09838529]
[1734093916282,0.26835786,100260.0,100250.0,1.42636172]
[1734093918493,0.26835786,100260.0,100250.0,1.43631152]
[1734093918976,0.31822486,100260.0,100250.0,1.07551152]
[1734093919179,0.38092745,100260.0,100250.0,0.37564939]
[1734093919376,0.47267067,100260.0,100250.0,0.55505265]
[1734093919576,0.47267067,100260.0,100250.0,0.27245483]
[1734093919776,0.50597067,100260.0,100250.0,0.27245483]
[1734093919982,0.50597067,100260.0,100250.0,0.55505265]
[1734093920180,0.50597067,100260.0,100250.0,0.55505056]
[1734093920889,0.50597067,100260.0,100250.0,0.52455056]
[1734093921092,0.50583996,100260.0,100250.0,0.28560793]
[1734093921289,0.50583996,100260.0,100250.0,0.52455056]
[1734093921684,0.50583996,100260.0,100250.0,0.28560793]
[1734093921886,0.50583996,100260.0,100250.0,0.52455056]
[1734093924195,0.56854255,100260.0,100250.0,0.48089537]
[1734093924494,0.35683643,100260.0,100250.0,0.24195274]
[1734093924886,0.71763643,100260.0,100250.0,0.24195274]
[1734093925390,0.70111782,100260.0,100250.0,0.006]
[1734093925585,0.90984108,100260.0,100250.0,0.006]
[1734093926489,1.14838195,100260.0,100250.0,0.006]
[1734093928183,0.049877,100240.0,100230.0,0.22928326]
[1734093928390,0.62225897,100240.0,100230.0,0.27957906]
[1734093928592,0.65425897,100240.0,100230.0,0.27957906]
[1734093928792,0.75402452,100240.0,100230.0,0.27957887]
[1734093928987,0.75402452,100240.0,100230.0,0.27294858]
[1734093929289,0.75402452,100240.0,100230.0,0.23590939]
[1734093929494,0.87408502,100240.0,100230.0,0.24490939]
[1734093929897,0.87508502,100240.0,100230.0,0.24890939]
[1734093931200,0.87508502,100240.0,100230.0,0.24228326]
[1734093931396,0.90728502,100240.0,100230.0,0.06288]
[1734093933495,0.74481688,100240.0,100230.0,0.12558259]
[1734093933696,0.80751947,100240.0,100230.0,0.12558259]